bitfinex-derivatives/quotes_SOLF0:USTF0_20241227
["timestamp","ask_amount","ask_price","bid_price","bid_amount"]
[1735265992683,58.34203817,190.41,190.24,3.2]
[1735265992869,4.7182,190.39,190.27,2.6319]
[1735265993073,2.631,190.34,190.24,12.87850164]
[1735265993781,4.7182,190.39,190.27,9.67850164]
[1735265994076,4.7182,190.39,190.3,2.6314]
[1735265994279,4.7182,190.39,190.31,3.2]
[1735265994475,2.6307,190.37,190.31,3.2]
[1735265994683,2.6307,190.37,190.31,5.8313]
[1735265997382,7.3486,190.39,190.31,12.87850164]
[1735265997582,1.547,190.39,190.31,12.87850164]
[1735265997778,11.25840164,190.46,190.31,12.87850164]
[1735265997983,2.40147763,190.45,190.35,2.6308]
[1735265998281,0.84156327,190.44,190.36,3.2]
[1735265998480,1.5599,190.45,190.36,3.2]
[1735265998481,2.6298,190.43,190.36,3.2]
[1735265998681,1.5599,190.45,190.36,3.2]
[1735265999476,2.6301,190.4,190.36,3.2]
[1735266000176,2.6299,190.42,190.36,5.8306]
[1735266001576,1.5599,190.45,190.33,2.631]
[1735266001880,0.84166909,190.44,190.34,3.2]
[1735266002081,2.6304,190.39,190.34,3.2]
[1735266002783,1.5599,190.45,190.34,3.2]
[1735266002986,2.6302,190.4,190.34,5.8309]
[1735266005479,2.63,190.41,190.36,2.6307]
[1735266007085,2.6303,190.39,190.34,5.8308]
[1735266008179,2.6303,190.39,190.34,3.2]
[1735266008381,2.6303,190.39,190.35,2.6308]
[1735266011882,2.6301,190.4,190.35,2.6308]
[1735266013185,1.5599,190.45,190.36,3.2]
[1735266013391,1.5599,190.45,190.31,101.74640872]
[1735266013392,9.67850164,190.43,190.31,101.74640872]
[1735266013689,9.67850164,190.43,190.32,3.2]
[1735266014190,2.6307,190.37,190.32,5.8312]
[1735266015289,2.6307,190.37,190.33,2.6311]
[1735266017890,2.6307,190.37,190.32,5.8312]
[1735266018690,2.6307,190.37,190.33,2.6311]
[1735266019491,2.6307,190.37,190.32,5.8312]
[1735266024302,2.6307,190.37,190.33,6.17568585]
[1735266024597,6.17568585,190.41,190.33,6.17568585]
[1735266024800,2.6309,190.35,190.33,6.17568585]
[1735266025100,1.5742,190.4,190.33,6.17568585]
[1735266025605,2.6304,190.38,190.33,6.17568585]
[1735266025802,1.5742,190.4,190.33,6.17568585]
[1735266026800,2.6308,190.36,190.33,6.17568585]
[1735266027405,2.6308,190.35,190.33,6.17568585]
[1735266027606,2.6308,190.35,190.34,3.2]
[1735266028603,2.631,190.34,190.31,92.06790708]
[1735266028809,6.17568585,190.37,190.31,95.26790708]
[1735266029600,6.17568585,190.35,190.27,7.20566004]
[1735266029801,2.6314,190.31,190.28,3.2]
[1735266030408,6.17568585,190.35,190.28,5.8317]
[1735266030602,1.5639,190.38,190.31,6.17568585]
[1735266031205,2.6309,190.35,190.31,6.17568585]
[1735266031604,2.6307,190.36,190.32,2.6312]
[1735266031805,1.5639,190.38,190.33,3.2]
[1735266032910,1.5639,190.38,190.33,9.37568585]
[1735266033415,2.6306,190.37,190.33,12.00678585]
[1735266035207,2.6306,190.37,190.33,5.8311]
[1735266047513,1.5742,190.4,190.33,9.37568585]
[1735266047719,6.17568585,190.43,190.37,6.17568585]
[1735266047920,6.17568585,190.43,190.38,3.2]
[1735266048222,2.6301,190.41,190.38,3.2]
[1735266048615,2.6296,190.44,190.4,2.63]
[1735266048815,6.17568585,190.47,190.4,2.63]
[1735266049312,2.6294,190.45,190.4,2.63]
[1735266049518,6.17568585,190.47,190.4,2.63]
[1735266050522,2.6296,190.44,190.4,2.63]
[1735266051019,2.6296,190.44,190.39,8.80588585]
[1735266051522,2.63377745,190.5,190.38,3.2]
[1735266051523,2.6301,190.41,190.38,3.2]
[1735266052218,2.6298,190.43,190.38,3.2]
[1735266053523,2.6298,190.43,190.38,5.8303]
[1735266053822,2.6298,190.43,190.39,6.17568585]
[1735266054418,2.6298,190.43,190.39,8.80588585]
[1735266055424,6.17568585,190.47,190.39,8.80588585]
[1735266055925,6.17568585,190.47,190.39,2.6302]
[1735266056118,6.17568585,190.47,190.39,8.80588585]
[1735266056318,2.63377745,190.5,190.39,8.80588585]
[1735266056524,6.17568585,190.47,190.4,2.6301]
[1735266057428,2.6295,190.45,190.4,2.6301]
[1735266057629,6.17568585,190.47,190.4,2.6301]
[1735266058629,2.6294,190.45,190.4,2.6301]
[1735266059724,6.17568585,190.47,190.39,6.17568585]
[1735266059927,6.17568585,190.47,190.39,8.80588585]
[1735266059928,2.6297,190.44,190.39,8.80588585]
[1735266060634,2.63,190.41,190.32,92.06927733]
[1735266060829,6.17568585,190.45,190.37,6.17568585]
[1735266061025,1.5277,190.44,190.38,3.2]
[1735266062125,2.63,190.42,190.38,3.2]
[1735266062528,1.5277,190.44,190.32,92.06927733]
[1735266062726,6.17568585,190.41,190.34,6.17568585]
[1735266063022,6.17568585,190.41,190.32,98.24496318]
[1735266063228,2.6306,190.37,190.33,3.2]
[1735266063431,6.17568585,190.39,190.33,3.2]
[1735266063833,2.6308,190.36,190.33,3.2]
[1735266064527,2.6305,190.37,190.33,3.2]
[1735266065931,2.6307,190.36,190.33,3.2]
[1735266068236,6.17568585,190.39,190.33,3.2]
[1735266068438,2.6307,190.37,190.33,3.2]
[1735266069238,6.17568585,190.39,190.33,3.2]
[1735266069438,2.6307,190.36,190.33,3.2]
[1735266072641,6.17568585,190.41,190.33,3.2]
[1735266072838,4.8037,190.44,190.34,6.17568585]
[1735266073038,6.17568585,190.43,190.35,2.6308]
[1735266073437,2.6305,190.38,190.34,6.17568585]
[1735266074141,6.17568585,190.41,190.34,6.17568585]
[1735266074335,2.6306,190.37,190.34,6.17568585]
[1735266074543,2.6306,190.37,190.33,3.2]
[1735266075142,2.631,190.34,190.32,92.06927733]
[1735266075439,2.631,190.34,190.32,95.26927733]
[1735266075639,6.17568585,190.37,190.32,92.06927733]
[1735266075941,2.6307,190.36,190.32,92.06927733]
[1735266076139,3.2,190.42,190.32,92.06927733]
[1735266076443,6.17568585,190.39,190.32,92.06927733]
[1735266076650,6.17568585,190.39,190.32,98.24496318]
[1735266076942,6.17568585,190.39,190.32,92.06927733]
[1735266077338,2.6308,190.35,190.32,92.06927733]
[1735266078244,6.17568585,190.37,190.32,92.06927733]
[1735266078447,1.5916,190.36,190.32,92.06927733]
[1735266078742,2.631,190.34,190.32,92.06927733]
[1735266080247,2.6311,190.33,190.32,92.06927733]
[1735266080448,1.5916,190.36,190.32,92.06927733]
[1735266081048,3.276,190.44,190.32,98.24496318]
[1735266081343,6.17568585,190.4,190.32,98.24496318]
[1735266081950,2.6306,190.37,190.33,2.631]
[1735266082448,2.6307,190.36,190.32,98.24496318]
[1735266082949,2.6308,190.35,190.32,98.24496318]
[1735266083452,6.17568585,190.4,190.32,98.24496318]
[1735266084152,2.6308,190.36,190.32,100.87616318]
[1735266084845,1.5692,190.43,190.32,98.24496318]
[1735266085047,2.6305,190.38,190.32,98.24496318]
[1735266085353,2.6305,190.38,190.34,6.17568585]
[1735266086448,2.6305,190.38,190.34,8.80658585]
[1735266087358,2.6305,190.37,190.34,6.17568585]
[1735266088760,6.17568585,190.42,190.32,92.06927733]
[1735266089060,2.6306,190.37,190.33,6.17568585]
[1735266091760,2.6307,190.36,190.33,6.17568585]
[1735266092761,2.6306,190.37,190.33,6.17568585]
[1735266092955,2.6306,190.37,190.33,8.80668585]
[1735266094265,1.5692,190.43,190.32,92.06927733]
[1735266094266,6.17568585,190.4,190.32,92.06927733]
[1735266094465,2.6308,190.36,190.32,92.06927733]
[1735266094663,6.17568585,190.4,190.31,12.00688585]
[1735266094664,6.17568585,190.4,190.33,3.2]
[1735266094962,2.6309,190.34,190.33,3.2]
[1735266095868,2.6309,190.34,190.31,9.37568585]
[1735266097669,2.6308,190.35,190.31,12.00698585]
[1735266098467,6.17568585,190.38,190.31,3.2]
[1735266099668,2.6312,190.33,190.29,8.80728585]
[1735266099866,6.17568585,190.36,190.3,3.2]
[1735266100066,1.5861,190.35,190.3,3.2]
[1735266100268,2.6313,190.32,190.3,3.2]
[1735266101372,2.6313,190.32,190.29,6.17568585]
[1735266101572,2.6313,190.32,190.29,9.37568585]
[1735266101871,2.6313,190.32,190.29,6.17568585]
[1735266102075,2.6313,190.32,190.29,9.37568585]
[1735266103371,1.5861,190.35,190.29,9.37568585]
[1735266103963,1.5861,190.35,190.27,8.80748585]
[1735266104163,6.17568585,190.34,190.26,90.09204735]
[1735266104366,6.17568585,190.34,190.28,3.2]
[1735266104674,2.6316,190.3,190.26,96.2677332]
[1735266104976,2.6316,190.3,190.27,3.2]
[1735266105574,2.6313,190.32,190.28,6.17568585]
[1735266106374,2.6314,190.31,190.28,6.17568585]
[1735266106573,6.17568585,190.34,190.28,6.17568585]
[1735266106776,6.17568585,190.34,190.27,3.2]
[1735266107072,6.17568585,190.32,190.26,90.09204735]
[1735266107880,2.632,190.27,190.24,9.37568585]
[1735266108080,6.17568585,190.32,190.24,9.37568585]
[1735266108672,6.17568585,190.32,190.24,3.2]
[1735266108673,2.6321,190.26,190.24,3.2]
[1735266108872,6.17568585,190.28,190.21,3.2]
[1735266109068,6.17568585,190.28,190.2,6.17568585]
[1735266109275,2.6326,190.23,190.2,3.2]
[1735266109476,6.17568585,190.26,190.2,3.2]
[1735266109872,6.17568585,190.24,190.18,9.83523215]
[1735266110076,6.17568585,190.24,190.18,13.03523215]
[1735266110472,6.17568585,190.24,190.18,3.6595463]
[1735266110674,6.17568585,190.24,190.18,6.8595463]
[1735266111486,2.6329,190.2,190.18,6.8595463]
[1735266112677,6.17568585,190.22,190.16,3.2]
[1735266112873,6.17568585,190.2,190.16,3.2]
[1735266113176,2.633,190.19,190.16,3.2]
[1735266113576,2.6333,190.17,190.14,3.2]
[1735266113978,6.17568585,190.2,190.14,3.2]
[1735266114180,2.6337,190.14,190.09,143.41884579]
[1735266114383,2.6337,190.14,190.11,3.2]
[1735266114674,2.6327,190.22,190.13,2.6338]
[1735266114882,7.85118585,190.23,190.14,6.17568585]
[1735266115080,7.85118585,190.23,190.16,6.17568585]
[1735266115377,2.6328,190.21,190.17,3.2]
[1735266124289,2.6329,190.2,190.17,3.2]
[1735266126390,2.6328,190.21,190.17,3.2]
[1735266128085,6.17568585,190.19,190.17,3.2]
[1735266129079,8.80868585,190.19,190.17,3.2]
[1735266129280,2.633,190.19,190.17,3.2]
[1735266132586,2.633,190.19,190.15,2.6336]
[1735266132891,2.633,190.19,190.15,3.2]
[1735266133093,2.6332,190.18,190.14,5.8337]
[1735266134690,2.6335,190.16,190.14,3.2]
[1735266134894,6.17568585,190.18,190.14,3.2]
[1735266135190,6.17568585,190.2,190.14,5.8337]
[1735266136387,2.6332,190.18,190.14,5.8337]
[1735266138997,2.6333,190.17,190.14,5.8337]
[1735266139193,2.6333,190.17,190.14,3.2]
[1735266139700,2.6335,190.16,190.14,3.2]
[1735266140088,6.17568585,190.19,190.14,3.2]
[1735266140292,2.6333,190.17,190.14,3.2]
[1735266141094,1.6755,190.23,190.15,2.6335]
[1735266141296,6.17568585,190.2,190.15,2.6335]
[1735266141998,2.6331,190.19,190.15,2.6335]
[1735266142202,6.17568585,190.2,190.14,3.2]
[1735266143100,6.17568585,190.18,190.14,3.2]
[1735266143803,2.6333,190.17,190.14,3.2]
[1735266143999,6.17568585,190.16,190.11,3.2]
[1735266144203,6.17568585,190.14,190.1,3.2]
[1735266144405,6.17568585,190.14,190.09,87.25114813]
[1735266144593,6.17568585,190.12,190.07,3.2]
[1735266144793,3.2,190.19,190.06,45.81632773]
[1735266144794,6.17568585,190.1,190.06,45.81632773]
[1735266145001,6.17568585,190.1,190.04,28.60215587]
[1735266145002,6.17568585,190.1,190.04,49.01632773]
[1735266145203,6.17568585,190.1,190.04,55.19201358]
[1735266145600,2.6343,190.11,190.06,2.6348]
[1735266145902,6.17568585,190.1,190.04,49.01632773]
[1735266146303,6.17568585,190.1,190.04,3.2]
[1735266146996,6.17568585,190.08,190.04,3.2]
[1735266147901,2.6349,190.06,190.04,3.2]
[1735266148900,2.635,190.05,190.04,3.2]
[1735266149096,2.635,190.05,190.01,3.2]
[1735266149806,6.17568585,190.08,190.01,3.2]
[1735266150406,2.6348,190.06,190.01,3.2]
[1735266150606,6.17568585,190.08,190.01,3.2]
[1735266151214,2.6351,190.04,190.01,3.2]
[1735266151908,2.6351,190.04,189.99,95.58788158]
[1735266152103,2.6352,190.03,190.0,3.2]
[1735266152304,6.17568585,190.04,189.94,7.20566004]
[1735266152504,1.6815,190.13,189.94,10.40566004]
[1735266152505,6.17568585,190.02,189.94,10.40566004]
[1735266152711,2.6358,189.99,189.94,7.20566004]
[1735266153208,2.6358,189.99,189.95,3.2]
[1735266153801,6.17568585,190.0,189.91,8.81258585]
[1735266154103,6.17568585,189.98,189.91,8.81258585]
[1735266154308,6.17568585,189.98,189.92,3.2]
[1735266154613,6.17568585,189.98,189.91,8.81258585]
[1735266154905,6.17568585,189.98,189.92,3.2]
[1735266155310,2.6362,189.96,189.91,6.17568585]
[1735266155606,2.6362,189.96,189.91,3.2]
[1735266155804,6.17568585,189.98,189.91,3.2]
[1735266156006,2.6364,189.95,189.91,3.2]
[1735266157306,6.17568585,189.96,189.91,3.2]
[1735266157506,2.6366,189.93,189.89,3.2]
[1735266157906,6.17568585,189.94,189.88,7.58470933]
[1735266158110,2.6368,189.92,189.88,10.78470933]
[1735266159416,2.637,189.91,189.88,10.78470933]
[1735266160414,2.637,189.91,189.88,7.58470933]
[1735266161805,2.6371,189.9,189.88,7.58470933]
[1735266162720,2.6371,189.9,189.86,3.2]
[1735266169918,2.6371,189.9,189.86,5.8376]
[1735266175715,2.6371,189.9,189.75,1.6458]
[1735266175920,2.6371,189.9,189.85,2.6377]
[1735266178017,2.6371,189.9,189.86,2.6376]
[1735266179016,8.81278585,189.9,189.86,2.6376]
[1735266187829,6.17568585,189.9,189.86,2.6376]
[1735266188035,2.6372,189.89,189.85,3.2]
[1735266188234,6.17568585,189.88,189.85,5.8377]
[1735266189036,8.81298585,189.88,189.85,3.2]
[1735266189233,6.17568585,189.88,189.83,7.20566004]
[1735266189436,6.17568585,189.88,189.84,3.2]
[1735266190439,2.6375,189.87,189.84,3.2]
[1735266190837,2.6375,189.87,189.83,13.04366004]
[1735266191137,2.6375,189.87,189.83,5.838]
[1735266192835,2.6372,189.9,189.85,2.6377]
[1735266193236,6.17568585,189.89,189.83,3.2]
[1735266194145,2.6373,189.88,189.84,2.6378]
[1735266195038,2.6375,189.87,189.83,13.04366004]
[1735266195239,6.17568585,189.87,189.83,10.40566004]
[1735266196544,72.12590572,189.95,189.83,10.40566004]
[1735266196740,6.17568585,189.89,189.83,3.2]
[1735266197148,2.6373,189.88,189.84,2.6379]
[1735266197746,2.6373,189.88,189.83,5.838]
[1735266198134,72.12590572,189.95,189.83,5.838]
[1735266198338,8.81318585,189.87,189.83,3.2]
[1735266200045,2.6373,189.88,189.83,3.2]
[1735266201443,2.6373,189.88,189.83,5.838]
[1735266202343,6.17568585,189.89,189.83,3.2]
[1735266203448,2.6375,189.88,189.83,5.8381]
[1735266204850,2.6377,189.87,189.83,5.8381]
[1735266205047,6.17568585,189.85,189.79,28.82264016]
[1735266205247,6.17568585,189.81,189.79,28.82264016]
[1735266205751,2.6385,189.8,189.79,13.18624017]
[1735266205956,6.17568585,189.81,189.72,24.40244113]
[1735266206142,6.17568585,189.75,189.72,24.40244113]
[1735266207756,6.17568585,189.73,189.68,4.7747]
[1735266207953,6.17568585,189.73,189.68,7.4148]
[1735266209156,8.81518585,189.73,189.68,7.4148]
[1735266210454,8.81518585,189.73,189.67,3.2]
[1735266211046,6.17568585,189.71,189.67,2.6403]
[1735266212159,8.81548585,189.71,189.65,3.2]
[1735266213150,8.81548585,189.71,189.64,17.09921025]
[1735266213450,2.6402,189.68,189.62,2.641]
[1735266213656,2.6402,189.68,189.62,5.841]
[1735266213851,6.17568585,189.69,189.62,9.37568585]
[1735266215157,6.17568585,189.69,189.64,2.6408]
[1735266216158,6.17568585,189.69,189.62,6.17568585]
[1735266216459,6.17568585,189.67,189.62,2.6409]
[1735266218962,72.20654055,189.74,189.6,3.2]
[1735266219163,78.3822264,189.74,189.66,6.17568585]
[1735266219359,3.2,189.86,189.68,6.17568585]
[1735266219668,6.17568585,189.77,189.68,6.17568585]
[1735266219962,6.17568585,189.73,189.66,6.17568585]
[1735266220366,8.81508585,189.73,189.68,2.6401]
[1735266220760,8.81508585,189.73,189.66,6.17568585]
[1735266220961,6.17568585,189.73,189.66,6.17568585]
[1735266222166,8.81518585,189.73,189.68,2.6401]
[1735266224264,6.17568585,189.73,189.66,2.6403]
[1735266224466,8.81538585,189.71,189.66,2.6403]
[1735266224864,6.17568585,189.71,189.65,3.2]
[1735266225067,2.6399,189.7,189.65,5.8405]
[1735266225566,6.17568585,189.71,189.66,2.6404]
[1735266226459,6.17568585,189.73,189.68,2.6401]
[1735266227063,8.81508585,189.73,189.68,2.6401]
[1735266229270,2.6394,189.73,189.68,2.6401]
[1735266235475,2.6394,189.73,189.69,2.64]
[1735266237669,6.17568585,189.75,189.66,6.17568585]
[1735266237976,2.6396,189.72,189.68,2.6401]
[1735266239268,8.81548585,189.71,189.64,9.82196156]
[1735266239574,6.17568585,189.71,189.65,3.2]
[1735266239871,2.6401,189.69,189.64,12.46256156]
[1735266240070,2.6401,189.69,189.64,9.82196156]
[1735266241075,2.6403,189.67,189.62,3.2]
[1735266241673,2.6403,189.67,189.62,2.6408]
[1735266242076,2.6396,189.72,189.65,6.17568585]
[1735266242276,7.77878585,189.73,189.65,6.17568585]
[1735266242670,10.41828585,189.73,189.68,2.6401]
[1735266244477,2.6408,189.63,189.61,46.26370757]
[1735266244678,3.2,189.72,189.61,46.26370757]
[1735266244679,4.7801,189.72,189.61,46.26370757]
[1735266244979,6.17568585,189.63,189.61,46.26370757]
[1735266245372,8.81648585,189.63,189.61,46.26370757]
[1735266246385,8.81648585,189.63,189.58,2.6415]
[1735266246882,1.6721,189.71,189.57,3.2]
[1735266247178,8.81638585,189.64,189.59,2.6413]
[1735266247986,2.6401,189.69,189.64,2.6406]
[1735266248278,1.6721,189.71,189.62,3.2]
[1735266248485,10.41828585,189.73,189.67,2.6401]
[1735266248685,10.41828585,189.73,189.65,6.17568585]
[1735266249284,10.41828585,189.73,189.68,2.6401]
[1735266251893,10.41828585,189.73,189.67,5.8402]
[1735266252192,4.2426,189.73,189.67,5.8402]
[1735266252793,1.6031,189.73,189.67,5.8402]
[1735266252993,9.71806514,189.76,189.67,3.2]
[1735266253793,2.6393,189.74,189.7,2.6398]
[1735266253996,2.6393,189.74,189.67,3.2]
[1735266255391,2.6393,189.74,189.69,2.64]
[1735266258397,3.2771,189.78,189.67,3.2]
[1735266259098,2.6393,189.75,189.7,2.6398]
[1735266259297,3.2771,189.78,189.7,2.6398]
[1735266260002,3.2771,189.78,189.71,2.6396]
[1735266260195,2.639,189.77,189.67,3.2]
[1735266261090,2.639,189.77,189.71,2.6396]
[1735266261295,2.6391,189.76,189.71,2.6396]
[1735266261495,3.2771,189.78,189.67,3.2]
[1735266261694,3.2771,189.78,189.68,3.2]
[1735266262398,2.6393,189.74,189.69,2.6399]
[1735266262603,3.2771,189.78,189.68,3.2]
[1735266263498,3.2771,189.78,189.7,2.6398]
[1735266263499,2.6391,189.75,189.7,2.6398]
[1735266263802,3.2771,189.78,189.68,3.2]
[1735266264393,2.6394,189.73,189.69,2.64]
[1735266264595,2.6394,189.73,189.68,3.2]
[1735266265190,2.6394,189.73,189.68,5.84]
[1735266265391,2.6394,189.73,189.68,3.2]
[1735266265699,2.6393,189.74,189.69,2.6399]
[1735266266397,2.6391,189.76,189.71,2.6397]
[1735266266901,2.6391,189.75,189.71,2.6397]
[1735266268303,2.639,189.76,189.71,2.6397]
[1735266268603,3.2771,189.78,189.68,3.2]
[1735266269393,2.6392,189.75,189.7,2.6398]
[1735266269597,3.2771,189.78,189.7,2.6398]
[1735266269801,9.71806514,189.76,189.68,3.2]
[1735266270202,3.2771,189.78,189.68,3.2]
[1735266270900,3.2771,189.78,189.71,2.6396]
[1735266270901,2.6391,189.76,189.71,2.6396]
[1735266271105,3.2771,189.78,189.71,2.6396]
[1735266271303,3.2771,189.78,189.68,3.2]
[1735266272208,6.21742853,189.76,189.68,9.41742853]
[1735266272709,6.21742853,189.76,189.71,2.6396]
[1735266273704,8.85642853,189.76,189.71,2.6396]
[1735266277210,72.18603958,189.8,189.68,9.41742853]
[1735266277412,8.85612853,189.79,189.7,6.21742853]
[1735266277712,2.6387,189.79,189.7,6.21742853]
[1735266277910,8.85612853,189.79,189.7,6.21742853]
[1735266278415,8.85612853,189.79,189.74,2.6392]
[1735266280910,8.85642853,189.76,189.71,3.18]
[1735266281111,6.21742853,189.74,189.71,3.18]
[1735266281812,6.21742853,189.74,189.67,6.21742853]
[1735266282007,6.21742853,189.74,189.68,3.18]
[1735266282411,6.21742853,189.74,189.7,2.6398]
[1735266283611,2.6392,189.75,189.7,2.6398]
[1735266284818,2.6395,189.73,189.69,2.64]
[1735266285116,2.6395,189.73,189.68,3.18]
[1735266285621,2.6395,189.73,189.68,5.82]
[1735266285922,2.6395,189.73,189.68,3.18]
[1735266286216,8.85672853,189.74,189.69,2.6399]
[1735266286417,6.21742853,189.76,189.68,3.18]
[1735266286916,2.6392,189.75,189.7,2.6398]
[1735266288518,6.21742853,189.76,189.7,2.6398]
[1735266288721,2.6393,189.74,189.68,3.18]
[1735266288920,6.21742853,189.74,189.69,2.6399]
[1735266290217,8.85672853,189.74,189.7,2.6398]
[1735266290725,2.6393,189.74,189.7,2.6398]
[1735266292324,6.21742853,189.76,189.68,3.18]
[1735266292524,2.6394,189.73,189.69,2.6399]
[1735266295120,2.6394,189.73,189.68,5.8201]
[1735266295828,2.6392,189.75,189.7,2.6398]
[1735266296327,2.6393,189.74,189.7,2.6398]
[1735266297928,2.6394,189.73,189.68,3.18]
[1735266299527,2.6394,189.73,189.69,2.64]
[1735266300222,2.6394,189.73,189.68,5.8201]
[1735266300723,6.21742853,189.74,189.68,5.8201]
[1735266300928,2.6396,189.72,189.68,5.8201]
[1735266301324,6.21742853,189.74,189.68,3.18]
[1735266301529,6.21742853,189.74,189.7,2.6397]
[1735266301926,8.85682853,189.74,189.69,2.6399]
[1735266302528,2.6394,189.74,189.69,2.6399]
[1735266303337,3.3301,189.79,189.71,2.6396]
[1735266303525,6.21742853,189.77,189.68,3.18]
[1735266303734,3.3301,189.79,189.71,6.21742853]
[1735266304442,5.9688,189.79,189.74,2.6391]
[1735266306537,3.3301,189.79,189.71,6.21742853]
[1735266307532,5.9688,189.79,189.73,2.6393]
[1735266310550,3.3301,189.79,189.73,2.6393]
[1735266310852,2.6387,189.78,189.73,2.6393]
[1735266312049,2.6387,189.78,189.74,2.6393]
[1735266314249,12.18612853,189.79,189.74,2.6393]
[1735266315749,9.54752853,189.79,189.74,2.6393]
[1735266316051,8.85622853,189.78,189.74,2.6393]
[1735266316453,2.6389,189.77,189.72,2.6394]
[1735266316649,6.21742853,189.78,189.72,2.6394]
[1735266317254,6.21742853,189.78,189.7,92.36898895]
[1735266317555,8.85652853,189.76,189.7,95.00868895]
[1735266317756,8.85652853,189.76,189.7,92.36898895]
[1735266318359,8.85652853,189.76,189.71,2.6397]
[1735266319359,2.6392,189.75,189.7,95.00878895]
[1735266320555,2.6392,189.75,189.7,92.36898895]
[1735266320753,2.6392,189.75,189.71,2.6397]
[1735266324763,2.6392,189.75,189.7,95.00878895]
[1735266325759,2.6392,189.75,189.71,2.6397]
[1735266331271,2.639,189.76,189.72,2.6394]
[1735266331572,6.21742853,189.78,189.71,6.21742853]
[1735266332169,2.6389,189.77,189.73,2.6393]
[1735266335175,6.21742853,189.78,189.75,2.639]
[1735266336480,8.85612853,189.78,189.75,2.639]
[1735266337177,8.85612853,189.78,189.74,2.6392]
[1735266339580,6.21742853,189.78,189.74,2.6392]
[1735266339779,6.21742853,189.78,189.71,6.21742853]
[1735266340479,8.85612853,189.78,189.73,2.6394]
[1735266342077,1.5762,189.82,189.76,2.6389]
[1735266342283,6.21742853,189.81,189.74,3.18]
[1735266342679,2.6387,189.78,189.74,3.18]
[1735266343181,6.21742853,189.79,189.74,3.18]
[1735266343774,6.21742853,189.79,189.74,5.8192]
[1735266344284,8.85602853,189.79,189.75,2.6391]
[1735266345283,2.6386,189.79,189.75,2.6391]
[1735266345581,2.6386,189.79,189.74,3.18]
[1735266345787,2.6387,189.78,189.74,5.8192]
[1735266348086,2.639,189.76,189.74,3.18]
[1735266348286,6.21742853,189.78,189.71,2.6396]
[1735266348287,6.21742853,189.78,189.71,3.18]
[1735266349578,2.6389,189.77,189.72,2.6395]
[1735266353187,6.21742853,189.78,189.73,2.6393]
[1735266353790,2.6387,189.79,189.74,2.6392]
[1735266357092,2.6389,189.77,189.73,2.6394]
[1735266361594,2.6387,189.78,189.73,8.85682853]
[1735266362086,6.21742853,189.81,189.76,2.6389]
[1735266363191,1.5762,189.82,189.76,2.6389]
[1735266363394,2.6386,189.8,189.76,2.6389]
[1735266364099,2.6386,189.79,189.75,2.6391]
[1735266366195,10.43192853,189.82,189.77,2.6388]
[1735266366396,7.79362853,189.82,189.77,2.6388]
[1735266367502,2.6383,189.81,189.77,2.6388]
[1735266367898,7.79362853,189.82,189.75,6.21742853]
[1735266368203,2.6385,189.8,189.76,2.639]
[1735266371908,2.6386,189.79,189.74,2.6392]
[1735266373210,2.6386,189.79,189.75,2.6391]
[1735266373611,2.6388,189.78,189.73,9.39742853]
[1735266373810,2.6388,189.78,189.74,2.6393]
[1735266376410,2.6388,189.78,189.73,5.8194]
[1735266376605,2.6388,189.78,189.73,2.6394]
[1735266378116,2.6388,189.78,189.72,9.39742853]
[1735266378314,2.6388,189.78,189.74,2.6393]
[1735266378712,1.5762,189.82,189.7,92.36898895]
[1735266378919,2.6393,189.74,189.69,5.8198]
[1735266379119,6.21742853,189.75,189.69,5.8198]
[1735266380419,2.6393,189.74,189.69,5.8198]
[1735266383120,1.5762,189.82,189.69,9.39742853]
[1735266383322,2.639,189.76,189.69,9.39742853]
[1735266383520,8.85642853,189.76,189.69,9.39742853]
[1735266383720,6.21742853,189.76,189.72,2.6395]